bitfinex-derivatives/quotes_ETHF0:USTF0_20250410
["timestamp","ask_amount","ask_price","bid_price","bid_amount"]
[1744295889702,1.26904,1576.9,1576.8,3.0177]
[1744295890103,23.41401,1577.0,1576.8,4.2868]
[1744295890305,20.46903,1577.0,1576.9,3.2078]
[1744295890515,20.46903,1577.0,1576.9,6.2255]
[1744295890713,12.554,1577.3,1576.9,6.2255]
[1744295891016,4.2138,1577.2,1577.1,3.2078]
[1744295891316,0.00950631,1577.4,1577.3,1.26872]
[1744295891522,12.0468,1578.1,1577.7,1.26836]
[1744295891823,1.26827,1577.9,1577.8,3.2078]
[1744295892310,2.945,1578.0,1577.8,3.2078]
[1744295892621,8.9062,1578.3,1577.8,3.2078]
[1744295892622,1.26824,1577.9,1577.8,3.2078]
[1744295892809,23.30684,1577.9,1577.8,3.2078]
[1744295893013,1.26872,1577.3,1577.2,6.0055]
[1744295893222,3.17125,1577.6,1577.2,7.39808]
[1744295893422,3.0053,1577.8,1577.5,1.26851]
[1744295893622,4.107,1577.7,1577.6,3.2078]
[1744295894016,2.8386,1577.7,1577.6,6.1293]
[1744295894324,1.26856,1577.5,1577.4,3.2078]
[1744295894518,1.26856,1577.5,1577.4,6.1293]
[1744295894718,1.26854,1577.6,1577.4,6.1293]
[1744295894919,1.26854,1577.6,1577.5,1.26856]
[1744295895120,1.26837,1577.8,1577.7,1.2684]
[1744295895316,2.8386,1578.0,1577.9,1.26824]
[1744295895618,2.8386,1578.0,1577.9,3.2078]
[1744295895619,1.26816,1578.0,1577.9,3.2078]
[1744295895813,1.27763631,1578.1,1577.9,4.47604]
[1744295896013,0.00950631,1578.1,1578.0,4.08956]
[1744295896217,0.00950631,1578.1,1578.0,6.88686]
[1744295897014,0.00950631,1578.1,1578.0,11.88686]
[1744295898629,1.26792,1578.3,1578.0,11.88686]
[1744295898822,1.26792,1578.3,1578.2,3.2078]
[1744295899126,3.16879,1578.9,1578.3,3.16976]
[1744295899325,1.26776,1578.5,1578.4,11.9862]
[1744295899524,1.26776,1578.5,1578.4,8.7912]
[1744295899823,1.27724631,1578.6,1578.5,1.26776]
[1744295900024,0.00950631,1578.6,1578.5,13.27256]
[1744295901322,4.94143481,1579.0,1578.9,1.26743]
[1744295901519,4.92847569,1579.0,1578.9,4.47523]
[1744295901825,4.92847569,1579.0,1578.9,9.47523]
[1744295902223,4.92847569,1579.0,1578.9,7.37893]
[1744295903026,4.92847569,1579.0,1578.9,10.37473]
[1744295903221,2.87680631,1579.1,1579.0,1.26735]
[1744295903424,0.00950631,1579.1,1579.0,4.26315]
[1744295904626,0.00950631,1579.1,1579.0,9.26315]
[1744295904831,11.54716221,1579.6,1579.2,3.16785]
[1744295905019,11.54716221,1579.6,1579.5,3.2078]
[1744295905729,1.26703,1579.4,1579.3,9.2038]
[1744295905929,1.26719,1579.2,1579.1,3.2078]
[1744295907227,1.26719,1579.2,1579.1,4.47507]
[1744295907431,1.26727,1579.1,1579.0,0.00950631]
[1744295907629,4.13537,1579.1,1579.0,0.00950631]
[1744295908431,9.13537,1579.1,1579.0,0.00950631]
[1744295908927,4.13537,1579.1,1579.0,0.00950631]
[1744295910524,9.13537,1579.1,1579.0,0.00950631]
[1744295911024,15.83337,1579.1,1579.0,0.00950631]
[1744295911231,10.83337,1579.1,1579.0,0.00950631]
[1744295912330,15.83337,1579.1,1579.0,0.00950631]
[1744295912720,10.83337,1579.1,1579.0,0.00950631]
[1744295913431,10.83337,1579.1,1579.0,3.21730631]
[1744295914425,3.16779,1579.3,1579.0,9.21330631]
[1744295914632,4.32546,1579.2,1579.1,3.0536]
[1744295914830,4.32546,1579.2,1579.1,4.32087]
[1744295915025,1.26719,1579.2,1579.1,3.0536]
[1744295915226,4.32533,1579.3,1579.1,3.0536]
[1744295915426,1.26711,1579.4,1579.3,1.26711]
[1744295915627,1.26703,1579.5,1579.4,1.26703]
[1744295915832,1.26703,1579.4,1579.3,5.996]
[1744295916032,1.26703,1579.4,1579.3,10.47091]
[1744295916427,1.26703,1579.4,1579.3,9.2038]
[1744295916632,1.26703,1579.4,1579.3,5.996]
[1744295916828,1.26703,1579.4,1579.3,9.2038]
[1744295917035,1.26703,1579.4,1579.3,10.47091]
[1744295917426,1.26703,1579.4,1579.3,5.996]
[1744295918734,1.26703,1579.4,1579.3,9.2038]
[1744295918928,1.26719,1579.2,1579.1,3.2078]
[1744295919228,1.26727,1579.1,1579.0,0.00950631]
[1744295919431,4.11297,1579.1,1579.0,0.00950631]
[1744295920038,2.8457,1579.1,1579.0,1.27685631]
[1744295920224,4.11297,1579.1,1579.0,0.00950631]
[1744295923235,4.11297,1579.1,1579.0,1.27685631]
[1744295923638,4.11297,1579.1,1579.0,0.00950631]
[1744295924231,6.90077,1579.1,1579.0,0.00950631]
[1744295925037,6.90077,1579.1,1579.0,6.31e-06]
[1744295925735,4.11297,1579.1,1579.0,6.31e-06]
[1744295928542,1.26727,1579.1,1579.0,5.99600631]
[1744295929138,1.26727,1579.1,1579.0,6.31e-06]
[1744295929639,4.14757,1579.1,1579.0,6.31e-06]
[1744295931548,9.14757,1579.1,1579.0,6.31e-06]
[1744295931837,4.14757,1579.1,1579.0,6.31e-06]
[1744295933139,14.98157,1579.1,1579.0,6.31e-06]
[1744295933650,34.18157,1579.1,1579.0,6.31e-06]
[1744295936547,1.268,1578.2,1578.1,15.0776]
[1744295936741,1.268,1578.2,1578.1,12.03094088]
[1744295936937,1.268,1578.2,1578.1,17.03094088]
[1744295937848,1.268,1578.2,1578.1,12.03094088]
[1744295939043,1.268,1578.2,1578.1,13.29902088]
[1744295939257,1.268,1578.2,1578.1,17.03094088]
[1744295939846,1.268,1578.2,1578.1,18.29902088]
[1744295940043,1.268,1578.2,1578.1,17.03094088]
[1744295940342,1.268,1578.2,1578.1,12.03094088]
[1744295940751,1.268,1578.2,1578.1,18.02694088]
[1744295941755,1.268,1578.2,1578.1,15.12044088]
[1744295941945,1.268,1578.2,1578.1,16.38852088]
[1744295942449,1.268,1578.2,1578.1,15.12044088]
[1744295944153,1.268,1578.2,1578.1,5.996]
[1744295944353,4.0636,1578.2,1578.1,9.2038]
[1744295944655,1.268,1578.2,1578.1,12.0047]
[1744295945151,1.268,1578.2,1578.1,8.7969]
[1744295945748,1.268,1578.2,1578.1,13.27278]
[1744295946146,1.268,1578.2,1578.1,12.0047]
[1744295946351,1.27746631,1578.3,1578.2,1.268]
[1744295946552,1.27746631,1578.3,1578.2,2.8009]
[1744295946749,1.27746631,1578.3,1578.2,4.0689]
[1744295946957,0.00950631,1578.3,1578.2,15.0649]
[1744295947148,1.26777,1578.5,1578.4,1.26784]
[1744295947346,1.26777,1578.5,1578.4,4.47564]
[1744295947547,10.58122221,1578.7,1578.6,1.26768]
[1744295947548,7.41215221,1578.7,1578.6,1.26768]
[1744295947847,7.41215221,1578.7,1578.6,10.47148]
[1744295948052,8.67974221,1578.7,1578.6,14.2038]
[1744295948255,8.67974221,1578.7,1578.6,9.2038]
[1744295948749,8.67974221,1578.7,1578.6,10.47148]
[1744295948948,8.67974221,1578.7,1578.6,9.2038]
[1744295949254,8.67974221,1578.7,1578.6,5.996]
[1744295949447,47.74130221,1578.7,1578.2,3.2078]
[1744295949647,1.26792,1578.3,1578.2,3.2078]
[1744295949847,1.26792,1578.3,1578.2,6.2053]
[1744295950047,1.26792,1578.3,1578.2,12.4733]
[1744295950248,1.2679,1578.4,1578.3,1.26787]
[1744295950547,1.26792,1578.3,1578.2,10.27173]
[1744295950752,1.26785,1578.5,1578.4,1.26781]
[1744295950948,1.26785,1578.5,1578.4,4.47561]
[1744295951349,1.26785,1578.5,1578.4,7.43441]
[1744295951950,1.26785,1578.5,1578.4,6.18060142]
[1744295952561,1.26785,1578.5,1578.4,6.19098297]
[1744295953055,1.26785,1578.5,1578.4,6.20136452]
[1744295953447,1.26785,1578.5,1578.4,6.1666]
[1744295953758,1.26785,1578.5,1578.4,6.21174607]
[1744295954265,1.26785,1578.5,1578.4,7.48996762]
[1744295954553,1.26774,1578.6,1578.5,1.26771]
[1744295954753,1.26774,1578.6,1578.5,0.06590917]
[1744295955557,1.26768,1578.7,1578.6,1.26764]
[1744295955750,1.26768,1578.7,1578.6,6.0203]
[1744295956157,1.26768,1578.7,1578.6,6.10697227]
[1744295956353,4.16558,1578.7,1578.6,2.89917227]
[1744295956554,1.25753618,1578.3,1578.2,7.70332]
[1744295956854,1.268,1578.2,1578.1,2.9821]
[1744295957050,1.268,1578.2,1578.0,3.21730631]
[1744295957051,1.26808,1578.1,1578.0,3.21730631]
[1744295957252,1.26808,1578.1,1578.0,3.22768786]
[1744295958056,9.8898,1578.6,1578.3,1.26789]
[1744295958057,6.05754,1578.6,1578.3,1.26789]
[1744295958361,1.2679,1578.4,1578.3,3.2078]
[1744295958561,1.23675535,1578.4,1578.3,7.46312]
[1744295958768,1.26784,1578.4,1578.3,11.95861]
[1744295959057,1.26784,1578.4,1578.3,10.70110155]
[1744295959259,1.26784,1578.4,1578.3,11.96902155]
[1744295959460,3.16935,1578.6,1578.3,15.70110155]
[1744295959659,1.26784,1578.4,1578.3,10.70110155]
[1744295959858,1.26784,1578.4,1578.3,11.9794031]
[1744295960063,1.26784,1578.4,1578.3,7.5036831]
[1744295960267,1.26784,1578.4,1578.3,4.5162831]
[1744295960565,1.26784,1578.4,1578.3,9.00238465]
[1744295960862,1.26784,1578.4,1578.3,7.7448462]
[1744295961464,1.26784,1578.4,1578.3,7.75522775]
[1744295961771,1.26784,1578.4,1578.3,4.54742775]
[1744295961968,1.2576907,1578.1,1578.0,0.00950631]
[1744295962566,25.4576907,1578.1,1578.0,0.01988786]
[1744295962759,20.4576907,1578.1,1578.0,0.01988786]
[1744295963063,20.4576907,1578.1,1578.0,0.00950631]
[1744295963264,20.4576907,1578.1,1578.0,0.03026941]
[1744295963568,23.2730907,1578.1,1578.0,0.03026941]
[1744295963766,23.2730907,1578.1,1578.0,0.04065096]
[1744295964063,4.0730907,1578.1,1578.0,3.24845096]
[1744295964263,4.0730907,1578.1,1578.0,0.05103251]
[1744295964464,23.2730907,1578.1,1578.0,0.05103251]
[1744295964666,28.2730907,1578.1,1578.0,0.05103251]
[1744295964868,28.2730907,1578.1,1578.0,0.06141406]
[1744295965171,23.2730907,1578.1,1578.0,0.06141406]
[1744295965359,23.2730907,1578.1,1578.0,0.07179561]
[1744295966067,26.4808907,1578.1,1578.0,0.08217716]
[1744295966269,1.2684,1577.7,1577.6,7.70332]
[1744295966567,1.2684,1577.7,1577.6,3.21818871]
[1744295966971,1.2684,1577.7,1577.6,6.13917026]
[1744295967564,1.2684,1577.7,1577.6,3.22857026]
[1744295967963,1.2684,1577.7,1577.6,0.02077026]
[1744295968259,1.23732819,1577.6,1577.5,0.00950631]
[1744295968664,6.23732819,1577.6,1577.5,0.00950631]
[1744295968862,1.23732819,1577.6,1577.5,0.01988786]
[1744295969169,6.23732819,1577.6,1577.5,0.01988786]
[1744295969372,12.14102819,1577.6,1577.5,0.01988786]
[1744295969670,12.14102819,1577.6,1577.5,0.03026941]
[1744295969874,1.26864,1577.4,1577.3,4.49552]
[1744295970063,1.25840904,1577.2,1577.1,3.2078]
[1744295970566,1.25840904,1577.2,1577.1,3.21818155]
[1744295970759,2.8661,1577.3,1577.2,1.2688]
[1744295970965,14.90907,1577.6,1577.2,1.2688]
[1744295970966,1.26858,1577.5,1577.4,1.26859]
[1744295971161,1.26864,1577.4,1577.3,7.49839]
[1744295971366,8.89983,1577.6,1577.4,1.26864]
[1744295971668,1.26862,1577.5,1577.4,4.16124]
[1744295971862,1.26862,1577.5,1577.4,4.17162155]
[1744295972063,1.26862,1577.5,1577.4,2.90298155]
[1744295972469,1.26862,1577.5,1577.4,2.9133631]
[1744295972664,1.26862,1577.5,1577.4,4.1820031]
[1744295972867,1.26862,1577.5,1577.4,2.9133631]
[1744295973063,1.26862,1577.5,1577.4,2.92374465]
[1744295973264,1.26862,1577.5,1577.4,4.19238465]
[1744295973464,1.26862,1577.5,1577.4,10.08408465]
[1744295973673,1.26862,1577.5,1577.4,10.0944662]
[1744295974273,1.26856,1577.5,1577.4,10.0944662]
[1744295974475,1.26856,1577.5,1577.4,10.05294]
[1744295974773,1.26856,1577.5,1577.4,10.10484775]
[1744295975273,1.26856,1577.5,1577.4,8.8465893]
[1744295975471,1.26856,1577.5,1577.4,0.0622893]
[1744295975776,6.26856,1577.5,1577.4,0.07267085]
[1744295975966,12.11476,1577.5,1577.4,0.07267085]
[1744295976273,1.1857476,1577.2,1577.1,0.00950631]
[1744295976781,1.1857476,1577.2,1577.1,0.01988786]
[1744295977072,5.8462,1577.5,1577.1,6.12618786]
[1744295977373,3.17123,1577.6,1577.3,3.2285631]
[1744295977374,1.26853,1577.6,1577.3,3.2285631]
[1744295977565,1.26856,1577.5,1577.4,3.039]
[1744295977769,1.26864,1577.4,1577.3,3.2285631]
[1744295978067,4.25954,1577.4,1577.3,3.23894465]
[1744295978673,4.25954,1577.4,1577.3,4.5180462]
[1744295978966,1.26864,1577.4,1577.3,4.5180462]
[1744295979174,1.26856,1577.5,1577.3,3.25970775]
[1744295979472,1.26864,1577.4,1577.3,3.25970775]
[1744295979673,1.26864,1577.4,1577.3,4.5387893]
[1744295979873,1.26864,1577.4,1577.3,3.2700893]
[1744295980171,1.26864,1577.4,1577.3,3.28047085]
[1744295980374,1.26864,1577.4,1577.3,4.54919085]
[1744295980561,1.26864,1577.4,1577.3,7.48839085]
[1744295980766,1.2688,1577.2,1577.1,3.21730631]
[1744295981073,1.1857476,1577.2,1577.1,7.42538631]
[1744295981273,1.26875,1577.3,1577.2,1.26876]
[1744295981466,1.26875,1577.3,1577.2,4.20796]
[1744295981866,1.26875,1577.3,1577.2,2.9392]
[1744295982073,1.26875,1577.3,1577.2,2.9599631]
[1744295982274,1.26875,1577.3,1577.2,0.0207631]
[1744295982476,1.23765535,1577.2,1577.1,3.21730631]
[1744295983072,1.23765535,1577.2,1577.1,3.22768786]
[1744295983380,4.44545535,1577.2,1577.1,0.01988786]
[1744295983769,1.2692,1576.7,1576.6,10.42986]
[1744295983970,1.26918,1576.8,1576.6,9.1606]
[1744295984169,20.46918,1576.8,1576.7,2.9147]
[1744295984370,20.46918,1576.8,1576.7,2.92509096]
[1744295984579,19.2,1576.8,1576.7,4.19429096]
[1744295984773,1.26912,1576.8,1576.7,2.9147]
[1744295984974,1.26912,1576.8,1576.7,2.93547251]
[1744295985180,4.47692,1576.8,1576.7,0.02077251]
[1744295985472,1.23812594,1576.6,1576.5,12.75355906]
[1744295985676,1.26928,1576.6,1576.5,18.87605906]
[1744295986073,1.26928,1576.6,1576.5,18.88644061]
[1744295986469,1.26928,1576.6,1576.5,18.89682216]
[1744295986676,1.26928,1576.6,1576.5,9.89812216]
[1744295987177,1.26928,1576.6,1576.5,9.90850371]
[1744295987378,4.14448,1576.6,1576.5,9.90850371]
[1744295987577,4.14448,1576.6,1576.5,12.84395906]
[1744295987879,4.14448,1576.6,1576.5,12.88548526]
[1744295988077,4.14448,1576.6,1576.5,12.84395906]
[1744295988277,4.14448,1576.6,1576.5,12.89586681]
[1744295988478,4.14448,1576.6,1576.5,16.10366681]
[1744295988782,1.26928,1576.6,1576.5,16.10366681]
[1744295988982,1.26928,1576.6,1576.5,6.22630775]
[1744295989184,2.8752,1576.7,1576.5,7.49566775]
[1744295989375,4.14448,1576.7,1576.6,2.9666]
[1744295989571,1.26928,1576.7,1576.6,2.9666]
[1744295989782,0.00950631,1576.9,1576.6,7.9666]
[1744295989976,0.00950631,1576.9,1576.8,3.2078]
[1744295990183,0.00950631,1576.9,1576.8,7.47612775]
[1744295990382,0.00950631,1576.9,1576.8,12.47612775]
[1744295991280,1.27854631,1576.9,1576.8,12.47612775]
[1744295991584,0.00950631,1576.9,1576.8,12.47612775]
[1744295994488,19.2,1577.4,1577.2,1.26876]
[1744295994792,1.26878,1577.3,1577.2,3.2078]
[1744295994986,1.26887,1577.2,1577.0,3.2078]
[1744295995183,2.8001,1577.3,1577.0,3.2078]
[1744295995383,1.26877,1577.3,1577.2,4.4766]
[1744295995593,1.27822631,1577.3,1577.2,4.47656]
[1744295996089,1.27822631,1577.3,1577.2,3.2078]
[1744295996278,0.00950631,1577.3,1577.2,9.4766]
[1744295996479,7.41215221,1577.8,1577.7,1.2684]
[1744295996688,8.68049221,1577.8,1577.7,3.2078]
[1744295997088,1.26848,1577.6,1577.5,5.8257]
[1744295997287,10.58309221,1577.8,1577.4,4.47644]
[1744295997288,1.26856,1577.5,1577.4,4.47644]
[1744295997489,1.26856,1577.5,1577.4,3.25970775]
[1744295998392,3.22620631,1577.6,1577.4,3.25970775]
[1744295998594,1.21665225,1577.5,1577.4,3.2078]
[1744295999094,1.21665225,1577.5,1577.4,4.47644]
[1744295999498,3.22620631,1577.6,1577.5,1.26856]
[1744295999692,1.26856,1577.5,1577.4,3.2078]
[1744295999886,1.26872,1577.3,1577.2,7.51006]
[1744296000091,2.9821,1577.4,1577.3,1.26872]
[1744296000491,1.26872,1577.3,1577.2,7.51006]
[1744296000692,4.25078,1577.4,1577.3,1.26872]
[1744296000993,4.25077,1577.4,1577.3,1.26872]
[1744296001495,0.00950631,1577.6,1577.5,1.26856]
[1744296001795,0.00950631,1577.6,1577.5,4.47636]
[1744296003799,0.00950631,1577.6,1577.5,9.47636]
[1744296005294,0.00950631,1577.6,1577.5,12.45646]
[1744296006508,8.68029221,1578.1,1578.0,1.26816]
[1744296006799,1.26816,1578.0,1577.9,3.2078]
[1744296007005,4.22346,1578.0,1577.9,3.2078]
[1744296007205,4.22346,1578.0,1577.9,4.47604]
[1744296007701,7.42165852,1578.1,1578.0,1.26816]
[1744296007901,8.68976852,1578.1,1578.0,1.26816]
[1744296008204,0.00950631,1578.1,1578.0,4.33076]
[1744296008404,0.00950631,1578.1,1578.0,7.36126]
[1744296010009,0.00950631,1578.1,1578.0,12.36126]
[1744296010800,0.00950631,1578.1,1578.0,7.36126]
[1744296011409,0.00950631,1578.1,1578.0,12.36126]
[1744296012005,0.00950631,1578.1,1578.0,7.36126]
[1744296012209,7.35063443,1579.1,1579.0,4.47515]
[1744296012405,22.39043184,1579.5,1579.0,4.47515]
[1744296012406,12.37353257,1579.3,1579.2,1.26719]
[1744296012711,7.35063443,1579.5,1579.4,1.26703]
[1744296013008,7.33767531,1579.5,1579.4,3.2078]
[1744296013209,12.33767531,1579.5,1579.4,3.2078]
[1744296013409,7.33767531,1579.5,1579.4,4.47483]
[1744296013816,13.60462531,1579.5,1579.4,3.2078]
[1744296014110,18.54037531,1579.5,1578.4,4.47559]
[1744296014316,1.26784,1578.4,1578.3,3.2078]
[1744296014608,36.439,1578.7,1578.4,1.26776]
[1744296014810,2.9949,1578.6,1578.5,3.2078]
[1744296015009,2.9949,1578.6,1578.5,4.47556]
[1744296015202,1.26768,1578.6,1578.5,3.2078]
[1744296015405,2.9949,1578.6,1578.5,4.47556]
[1744296015608,0.00950631,1578.7,1578.6,1.26768]
[1744296016006,3.00440631,1578.7,1578.6,1.26768]
[1744296016317,4.27199631,1578.7,1578.6,1.26768]
[1744296016513,3.00440631,1578.7,1578.6,1.26768]
[1744296017212,4.27206631,1578.7,1578.6,1.26768]
[1744296017415,3.00440631,1578.7,1578.6,1.26768]
[1744296017609,0.00950631,1578.7,1578.6,1.26768]
[1744296020408,3.12520631,1578.7,1578.6,1.26768]
[1744296020910,1.2673,1579.1,1578.6,6.26768]
[1744296021108,4.37004088,1579.1,1579.0,3.2078]
[1744296021306,4.38297,1579.1,1579.0,4.47515]
[1744296021511,3.1157,1579.1,1579.0,4.47515]
[1744296021717,4.19916,1579.3,1579.2,1.26719]
[1744296021910,4.19916,1579.3,1579.2,3.2078]
[1744296022112,9.19916,1579.3,1579.2,3.2078]
[1744296022314,38.99916,1579.3,1579.2,3.2078]
[1744296023018,1.26719,1579.2,1579.1,3.2078]
[1744296023315,4.44459,1579.2,1579.1,3.2078]
[1744296024113,3.2078,1581.3,1579.8,3.2078]
[1744296024325,3.1774,1580.8,1580.2,3.2078]
[1744296024615,3.1774,1580.8,1580.7,3.2078]
[1744296024818,1.9115,1580.8,1580.7,4.47379]
[1744296025008,6.1536,1581.3,1581.2,1.26559]
[1744296025208,17.01577261,1581.4,1581.2,3.2078]
[1744296025416,17.02527892,1581.4,1581.2,3.2078]
[1744296025613,38.66551,1581.3,1581.2,3.2078]
[1744296026111,42.4,1581.3,1581.2,3.2078]
[1744296026310,43.66551,1581.3,1581.2,3.2078]
[1744296026708,1.26559,1581.2,1581.1,3.21730631]
[1744296026912,4.44709,1581.2,1581.1,3.21730631]
[1744296027108,37.4,1581.3,1581.2,1.26559]
[1744296027513,43.66553,1581.3,1581.1,3.21730631]
[1744296027717,37.4,1581.3,1581.2,1.26559]
[1744296028113,40.2624,1581.3,1581.1,4.48292631]
[1744296028320,41.52798,1581.3,1581.1,3.21730631]
[1744296028614,1.26559,1581.2,1581.1,3.21730631]
[1744296028824,4.12799,1581.2,1581.1,3.21730631]
[1744296029014,10.9626,1581.2,1580.9,3.2078]
[1744296029325,1.26575,1581.0,1580.9,3.2078]
[1744296029714,9.30265,1581.0,1580.9,3.2078]
[1744296031016,1.26583,1580.9,1580.8,0.00950631]
[1744296031222,4.30273,1580.9,1580.8,3.21730631]
[1744296031413,9.30273,1580.9,1580.8,3.21730631]
[1744296031821,9.30273,1580.9,1580.8,0.00950631]
[1744296032116,9.30273,1580.9,1580.8,3.21730631]
[1744296032823,9.30273,1580.9,1580.8,0.00950631]
[1744296033228,1.26599,1580.7,1580.6,3.2078]
[1744296033522,1.26615,1580.5,1580.4,3.2078]
[1744296034027,6.26615,1580.5,1580.4,3.2078]
[1744296034224,9.37065,1580.5,1580.4,3.2078]
[1744296034926,4.37065,1580.5,1580.4,3.2078]
[1744296035318,1.26623,1580.4,1580.3,0.00950631]
[1744296035514,1.26631,1580.3,1580.2,3.2078]
[1744296035820,1.26647,1580.1,1579.7,3.16695]
[1744296036021,1.26647,1580.1,1580.0,3.2078]
[1744296036218,37.4,1580.1,1580.0,4.47435]
[1744296036523,1.26629,1580.4,1580.3,1.26631]
[1744296036725,1.26629,1580.4,1580.3,4.47411]
[1744296036913,38.66629,1580.4,1580.3,4.47411]
[1744296037117,4.24187,1580.5,1580.4,1.26623]
[1744296037325,2.9757,1580.5,1580.3,4.47409]
[1744296037524,2.9757,1580.5,1580.4,1.26623]
[1744296037726,40.3757,1580.5,1580.3,3.2078]
[1744296037924,1.26623,1580.4,1580.3,3.2078]
[1744296038122,4.24193,1580.4,1580.3,3.2078]
[1744296038629,8.9978,1581.3,1580.4,3.16558]
[1744296038828,2.8742,1581.0,1580.8,1.2659]
[1744296039123,4.13995,1581.0,1580.9,3.2078]
[1744296039323,6.609,1581.3,1580.9,3.2078]
[1744296039524,1.26567,1581.1,1581.0,2.9666]
[1744296039726,1.26567,1581.1,1581.0,3.2078]
[1744296039928,6.26567,1581.1,1581.0,3.2078]
[1744296040227,9.18497,1581.1,1581.0,3.2078]
[1744296041218,1.26567,1581.1,1581.0,3.2078]
[1744296041423,4.19207,1581.1,1581.0,3.2078]
[1744296042231,2.9264,1581.1,1581.0,4.47355]
[1744296042423,4.19207,1581.1,1581.0,6.0543]
[1744296042624,4.19207,1581.1,1581.0,3.2078]
[1744296043426,0.00950631,1581.3,1581.0,9.47353]
[1744296043619,1.27505631,1581.3,1581.2,3.2078]
[1744296043825,0.00950631,1581.3,1581.2,7.31989]
[1744296044534,0.00950631,1581.3,1581.2,12.31989]
[1744296044732,0.00950631,1581.3,1581.2,15.23979]
[1744296045122,0.00950631,1581.3,1581.2,11.00747337]
[1744296046226,0.00950631,1581.3,1581.2,16.00747337]
[1744296046533,2.8979,1581.7,1581.2,20.73788337]
[1744296046732,4.16309,1581.7,1581.6,3.2078]
[1744296046936,41.56309,1581.7,1581.6,3.2078]
[1744296047128,46.56309,1581.7,1581.6,3.2078]
[1744296047322,1.26519,1581.7,1581.6,3.2078]
[1744296047728,1.26519,1581.7,1581.6,6.0485]
[1744296048330,2.88410631,1581.8,1581.6,6.0485]
[1744296048635,4.14921631,1581.8,1581.7,2.8407]
[1744296049135,4.14921631,1581.8,1581.6,3.2078]
[1744296049136,1.26519,1581.7,1581.6,3.2078]
[1744296049337,10.74579,1581.7,1581.6,3.2078]
[1744296050937,7.87119,1581.7,1581.6,3.2078]
[1744296051131,1.26519,1581.7,1581.6,3.2078]
[1744296052035,1.26519,1581.7,1581.6,3.97827803]
[1744296052935,4.35379,1581.7,1581.6,3.97827803]
[1744296053135,0.00950631,1581.8,1581.6,3.97827803]
[1744296053136,0.00950631,1581.8,1581.7,1.26519]
[1744296053329,0.00950631,1581.8,1581.7,13.91986803]
[1744296053529,6.593,1582.7,1581.9,3.16249]
[1744296053732,7.85739,1582.7,1582.6,3.2078]
[1744296054135,1.26439,1582.7,1582.6,3.2078]
[1744296054439,1.26455,1582.5,1582.4,6.14]
[1744296055037,1.26455,1582.5,1582.4,3.97926299]
[1744296055333,4.29515,1582.5,1582.4,3.97926299]
[1744296055733,4.29515,1582.5,1582.4,3.2078]
[1744296056747,1.26463,1582.4,1582.3,0.00950631]
[1744296057044,4.37713,1582.4,1582.3,0.00950631]
[1744296057239,12.45073,1582.4,1582.3,6.31e-06]
[1744296057639,4.37713,1582.4,1582.3,3.20780631]
[1744296057847,41.77713,1582.4,1582.3,3.20780631]
[1744296058144,38.66463,1582.4,1582.3,3.20780631]
[1744296058743,1.26463,1582.4,1582.3,3.20780631]
[1744296058946,0.00950631,1582.6,1582.5,1.26455]
[1744296059243,0.00950631,1582.6,1582.5,15.46835]
[1744296059440,0.00950631,1582.6,1582.5,19.14403391]
[1744296059649,3.1125,1583.1,1582.5,17.87948391]
[1744296059944,3.1125,1583.1,1583.0,3.2078]
[1744296059945,4.37657,1583.1,1583.0,3.2078]
[1744296060545,9.37657,1583.1,1583.0,3.2078]
[1744296060851,1.26431,1582.8,1582.7,0.76928391]
[1744296061042,1.26439,1582.7,1582.6,3.2078]
[1744296061347,38.66439,1582.7,1582.6,3.2078]
[1744296061738,42.4,1582.7,1582.4,3.2078]
[1744296061942,38.66445,1582.7,1582.6,3.2078]
[1744296062250,6.59947538,1583.2,1582.6,8.2078]
[1744296062542,6.59947538,1583.2,1582.7,10.14745053]
[1744296062747,1.26418,1583.0,1582.9,3.2078]
[1744296063758,1.26415,1583.0,1582.9,3.2078]
[1744296064159,38.66413,1583.1,1582.9,3.2078]
[1744296064457,38.66413,1583.1,1583.0,2.9254]
[1744296064656,0.00947538,1583.2,1583.1,1.26407]
[1744296064957,0.00947538,1583.2,1583.1,7.28967]
[1744296065157,0.00947538,1583.2,1583.1,19.04616546]
[1744296065658,0.00947538,1583.2,1583.1,17.78209546]
[1744296065863,0.00947538,1583.2,1583.1,12.78209546]
[1744296065864,1.27346538,1583.2,1583.1,12.78209546]
[1744296066154,1.27346538,1583.2,1583.1,9.2038]
[1744296066351,1.27346538,1583.2,1583.1,5.996]
[1744296066858,0.00947538,1583.2,1583.0,6.1332]
[1744296067059,1.26407,1583.1,1583.0,6.1332]
[1744296067551,0.00947538,1583.2,1583.0,6.1332]
[1744296067857,1.27347538,1583.2,1583.0,7.39735]
[1744296068057,1.27347538,1583.2,1583.0,6.1332]
[1744296068258,1.27347538,1583.2,1583.0,7.39734]
[1744296068660,1.26407,1583.1,1583.0,6.1332]
[1744296069357,1.26407,1583.1,1583.0,3.2078]
[1744296069557,4.30137,1583.1,1583.0,3.2078]
[1744296070357,1.26407,1583.1,1583.0,3.2078]
[1744296070549,1.27353538,1583.2,1583.0,3.2078]
[1744296070754,1.27346538,1583.2,1583.1,3.1201]
[1744296070951,1.26407,1583.1,1583.0,6.3279]
[1744296071160,0.00947538,1583.2,1583.0,12.3239]
[1744296071360,1.27346538,1583.2,1583.1,2.9668]
[1744296071658,1.26407,1583.1,1583.0,12.3239]
[1744296072665,0.00947538,1583.2,1583.0,12.3239]
[1744296073062,1.27346538,1583.2,1583.1,0.76148411]
[1744296073254,6.27346538,1583.2,1583.1,4.11e-06]
[1744296073460,9.11826538,1583.2,1583.1,4.11e-06]
[1744296073662,14.95226538,1583.2,1583.1,4.11e-06]
[1744296073860,1.26455,1582.5,1582.4,9.188]
[1744296074655,1.26455,1582.5,1582.4,3.2078]
[1744296075065,4.10934,1582.6,1582.4,3.2078]
[1744296075265,6.586,1582.7,1582.5,3.0954]
[1744296075460,7.85045,1582.7,1582.6,3.2078]